lending/lending_fUSD_20250917
["ID","MTS","AMOUNT","RATE_DAILY","PERIOD"]
[385936422,1758137483426,-400.0,0.00023835,2]
[385936423,1758137483436,-400.0,0.00023835,2]
[385936424,1758137483445,-400.0,0.00023835,2]
[385936425,1758137483455,-400.0,0.00023835,2]
[385936426,1758137483465,-400.0,0.00023835,2]
[385936427,1758137483474,-586.66,0.00023835,2]
[385936428,1758137483484,-430.47,0.00023835,2]
[385936429,1758137483494,-400.0,0.00023835,2]
[385936430,1758137483504,-400.0,0.00023835,2]
[385936431,1758137483513,-980.45,0.00023844,2]
[385936432,1758137483523,-4300.0,0.000239,8]
[385936433,1758137483536,-400.0,0.00023916,2]
[385936434,1758137483546,-400.0,0.00023916,2]
[385936435,1758137483555,-400.0,0.00023916,2]
[385936436,1758137483564,-575.48,0.00023916,2]
[385936437,1758137483573,-400.0,0.00023916,2]
[385936438,1758137483583,-400.0,0.00023916,2]
[385936439,1758137483592,-765.76,0.00023916,2]
[385936440,1758137483601,-226.92525682,0.00023916,2]
[385936441,1758137483610,-400.0,0.00023916,2]
[385936442,1758137483620,-1623.57,0.00023916,2]
[385936443,1758137483629,-400.0,0.00023916,2]
[385936444,1758137483638,-878.95,0.00023916,2]
[385936445,1758137483648,-400.0,0.00023916,2]
[385936446,1758137483657,-177.139291,0.00023916,2]
[385936447,1758137483667,-244.040939,0.00023916,2]
[385936448,1758137483677,-386.251879,0.00023916,2]
[385936449,1758137483686,-1073.87,0.00023916,2]
[385936450,1758137483696,-400.0,0.00023916,2]
[385936451,1758137483707,-535.0,0.00023916,2]
[385936452,1758137483716,-459.71,0.00023916,2]
[385936453,1758137483726,-400.0,0.00023916,2]
[385936454,1758137483736,-400.0,0.00023916,2]
[385936455,1758137483745,-400.0,0.00023916,2]
[385936456,1758137483755,-400.0,0.00023916,2]
[385936457,1758137483764,-400.0,0.00023916,2]
[385936458,1758137483773,-502.81,0.00023916,2]
[385936459,1758137483782,-542.92,0.00023916,2]
[385936460,1758137483792,-400.0,0.00023916,2]
[385936461,1758137483802,-538.28,0.00023916,2]
[385936462,1758137483811,-400.0,0.00023916,2]
[385936463,1758137483824,-1127.23,0.00023916,2]
[385936464,1758137483834,-400.0,0.00023916,2]
[385936465,1758137483843,-476.01,0.00023916,2]
[385936466,1758137483852,-400.0,0.00023916,2]
[385936467,1758137483862,-1008.77,0.00023916,2]
[385936468,1758137483872,-400.0,0.00023916,2]
[385936469,1758137483881,-400.0,0.00023916,2]
[385936470,1758137483890,-763.58,0.00023916,2]
[385936471,1758137483900,-400.0,0.00023916,2]
[385936472,1758137483910,-400.0,0.00023916,2]
[385936473,1758137483920,-400.0,0.00023916,2]
[385936474,1758137483929,-1279.58,0.00023916,2]
[385936475,1758137483939,-556.98,0.00023916,2]
[385936476,1758137483948,-449.94,0.00023916,2]
[385936477,1758137483958,-435.9,0.00023916,2]
[385936478,1758137483968,-400.0,0.00023916,2]
[385936479,1758137483977,-400.0,0.00023916,2]
[385936480,1758137483986,-505.47,0.00023916,2]
[385936481,1758137483996,-551.94,0.00023916,2]
[385936482,1758137484006,-400.0,0.00023916,2]
[385936483,1758137484015,-400.0,0.00023916,2]
[385936484,1758137484025,-400.0,0.00023916,2]
[385936485,1758137484035,-400.0,0.00023916,2]
[385936486,1758137484044,-542.84,0.00023916,2]
[385936487,1758137484054,-400.0,0.00023916,2]
[385936488,1758137484063,-565.74,0.00023916,2]
[385936489,1758137484074,-400.0,0.00023916,2]
[385936490,1758137484084,-400.0,0.00023916,2]
[385936491,1758137484094,-461.5,0.00023916,2]
[385936492,1758137484103,-400.0,0.00023916,2]
[385936493,1758137484112,-400.0,0.00023916,2]
[385936494,1758137484122,-728.72,0.00023916,2]
[385936495,1758137484132,-1073.76,0.00023916,2]
[385936496,1758137484141,-400.0,0.00023916,2]
[385936497,1758137484151,-400.0,0.00023916,2]
[385936498,1758137484160,-821.83,0.00023916,2]
[385936499,1758137484170,-400.0,0.00023916,2]
[385936500,1758137484179,-400.0,0.00023916,2]
[385936501,1758137484189,-455.35,0.00023916,2]
[385936502,1758137484198,-400.0,0.00023916,2]
[385936503,1758137484210,-1019.68,0.00023916,2]
[385936504,1758137484219,-511.63,0.00023916,2]
[385936505,1758137484228,-972.93,0.00023916,2]
[385936506,1758137484238,-400.0,0.00023916,2]
[385936507,1758137484248,-1906.2,0.00023916,2]
[385936508,1758137484257,-400.0,0.00023916,2]
[385936509,1758137484267,-400.0,0.00023916,2]
[385936510,1758137484277,-400.0,0.00023916,2]
[385936511,1758137484286,-7460.96,0.00023916,2]
[385936512,1758137484296,-594.36,0.00023916,2]
[385936513,1758137484305,-400.0,0.00023916,2]
[385936514,1758137484315,-400.0,0.00023916,2]
[385936515,1758137484324,-400.0,0.00023916,2]
[385936516,1758137484333,-3359.33,0.00023916,2]
[385936517,1758137484343,-400.0,0.00023916,2]
[385936518,1758137484353,-485.76,0.00023916,2]
[385936519,1758137484362,-404.67427465,0.00023917,2]
[385936520,1758137484371,-400.0,0.00023917,2]
[385936521,1758137484381,-400.0,0.00023917,2]
[385936522,1758137484390,-400.0,0.00023917,2]
[385936523,1758137484399,-499.98,0.00023917,2]
[385936524,1758137484408,-554.96,0.00023917,2]
[385936525,1758137484417,-400.0,0.00023917,2]
[385936526,1758137484427,-400.0,0.00023917,2]
[385936527,1758137484436,-400.0,0.00023917,2]
[385936528,1758137484446,-400.0,0.00023917,2]
[385936529,1758137484456,-306.39641609,0.00023917,2]
[385936530,1758137484465,-400.0,0.00023917,2]
[385936531,1758137484474,-400.0,0.00023917,2]
[385936532,1758137484483,-400.0,0.00023917,2]
[385936533,1758137484492,-412.19881429,0.00023917,2]
[385936534,1758137484501,-400.0,0.00023917,2]
[385936535,1758137484513,-400.0,0.00023917,2]
[385936536,1758137484523,-400.0,0.00023917,2]
[385936537,1758137484532,-445.65483985,0.00023917,2]
[385936538,1758137484541,-400.0,0.00023917,2]
[385936539,1758137484551,-400.0,0.00023917,2]
[385936540,1758137484560,-400.0,0.00023917,2]
[385936541,1758137484569,-400.0,0.00023917,2]
[385936542,1758137484577,-400.0,0.00023917,2]
[385936543,1758137484586,-400.0,0.00023917,2]
[385936544,1758137484595,-400.0,0.00023917,2]
[385936545,1758137484604,-400.0,0.00023917,2]
[385936546,1758137484613,-400.0,0.00023917,2]
[385936547,1758137484622,-422.78,0.00023917,2]
[385936548,1758137484632,-711.68,0.00023917,2]
[385936549,1758137484641,-501.32,0.00023917,2]
[385936550,1758137484650,-400.0,0.00023917,2]
[385936551,1758137484659,-400.0,0.00023917,2]
[385936552,1758137484669,-400.0,0.00023917,2]
[385936553,1758137484678,-400.0,0.00023917,2]
[385936554,1758137484686,-400.0,0.00023917,2]
[385936555,1758137484696,-437.82,0.00023917,2]
[385936556,1758137484705,-400.0,0.00023917,2]
[385936557,1758137484714,-400.0,0.00023917,2]
[385936558,1758137484723,-400.0,0.00023917,2]
[385936559,1758137484733,-400.0,0.00023917,2]
[385936560,1758137484742,-400.0,0.00023917,2]
[385936561,1758137484750,-400.0,0.00023917,2]
[385936562,1758137484759,-400.0,0.00023917,2]
[385936563,1758137484768,-400.0,0.00023917,2]
[385936564,1758137484778,-400.0,0.00023917,2]
[385936565,1758137484787,-468.8,0.00023917,2]
[385936566,1758137484796,-400.0,0.00023917,2]
[385936567,1758137484805,-939.92,0.00023917,2]
[385936568,1758137484815,-462.35,0.00023917,2]
[385936569,1758137484826,-1108.83,0.00023917,2]
[385936570,1758137484835,-587.56,0.00023917,2]
[385936571,1758137484845,-820.14,0.00023917,2]
[385936572,1758137484855,-1781.73,0.00023917,2]
[385936573,1758137484864,-564.62,0.00023917,2]
[385936574,1758137484875,-400.0,0.00023917,2]
[385936575,1758137484885,-400.0,0.00023917,2]
[385936576,1758137484895,-454.8,0.00023917,2]
[385936577,1758137484904,-400.0,0.00023917,2]
[385936578,1758137484914,-400.0,0.00023917,2]
[385936579,1758137484923,-419.62,0.00023917,2]
[385936580,1758137484933,-514.56,0.00023917,2]
[385936581,1758137484942,-471.22,0.00023917,2]
[385936582,1758137484952,-443.87,0.00023917,2]
[385936583,1758137484962,-546.46,0.00023917,2]
[385936584,1758137484971,-411.01,0.00023917,2]
[385936585,1758137484980,-719.15,0.00023917,2]
[385936586,1758137484990,-769.33,0.00023917,2]
[385936587,1758137484999,-450.77,0.00023917,2]
[385936588,1758137485009,-1734.54,0.00023917,2]
[385936589,1758137485019,-1923.29,0.00023917,2]
[385936590,1758137485029,-411.58,0.00023917,2]
[385936591,1758137485038,-431.89,0.00023917,2]
[385936592,1758137485047,-733.95,0.00023917,2]
[385936593,1758137485057,-400.0,0.00023917,2]
[385936594,1758137485067,-3546.51,0.00023917,2]
[385936595,1758137485076,-935.65,0.00023917,2]
[385936596,1758137485086,-957.93,0.00023917,2]
[385936597,1758137485096,-405.32,0.00023917,2]
[385936598,1758137485106,-489.76,0.00023917,2]
[385936599,1758137485116,-535.24,0.00023917,2]
[385936600,1758137485126,-400.0,0.00023917,2]
[385936601,1758137485136,-491.18,0.00023917,2]
[385936602,1758137485145,-780.29,0.00023917,2]
[385936603,1758137485155,-706.88,0.00023917,2]
[385936604,1758137485165,-400.0,0.00023917,2]
[385936605,1758137485175,-1559.37,0.00023917,2]
[385936606,1758137485185,-769.68,0.00023917,2]
[385936607,1758137485195,-737.61,0.00023917,2]
[385936608,1758137485206,-568.29,0.00023917,2]
[385936609,1758137485216,-976.6,0.00023917,2]
[385936610,1758137485226,-777.44,0.00023917,2]
[385936611,1758137485235,-876.26,0.00023917,2]
[385936612,1758137485245,-680.77,0.00023917,2]
[385936613,1758137485254,-492.09,0.00023917,2]
[385936614,1758137485264,-883.58,0.00023917,2]
[385936615,1758137485274,-400.0,0.00023917,2]
[385936616,1758137485283,-400.0,0.00023917,2]
[385936617,1758137485293,-400.0,0.00023917,2]
[385936618,1758137485302,-168.0,0.00023957,2]
[385936619,1758137485312,-168.0,0.00023985,2]
[385936620,1758137485321,-160.0,0.00024,7]
[385936621,1758137485330,-1000.0,0.00024007,2]
[385936622,1758137485339,-1000.0,0.00024048,2]
[385936623,1758137485348,-168.0,0.00024063,2]
[385936624,1758137485357,-168.0,0.00024065,2]
[385936625,1758137485367,-500.0,0.00024069,2]
[385936626,1758137485376,-500.0,0.00024069,2]
[385936627,1758137485385,-500.0,0.00024069,2]
[385936628,1758137485394,-500.0,0.00024069,2]
[385936629,1758137485403,-500.0,0.00024069,2]
[385936630,1758137485412,-500.0,0.00024069,2]
[385936631,1758137485421,-400.0,0.00024089,2]
[385936632,1758137485430,-400.0,0.0002409,2]
[385936633,1758137485439,-400.0,0.0002409,2]
[385936634,1758137485448,-400.0,0.0002409,2]
[385936635,1758137485460,-400.0,0.0002409,2]
[385936636,1758137485470,-400.0,0.0002409,2]
[385936637,1758137485479,-400.0,0.0002409,2]
[385936638,1758137485488,-488.59,0.0002409,2]
[385936639,1758137485498,-400.0,0.0002409,2]
[385936640,1758137485507,-400.0,0.0002409,2]
[385936641,1758137485517,-400.0,0.0002409,2]
[385936642,1758137485526,-451.64660298,0.0002409,2]
[385936643,1758137485536,-435.76,0.0002409,2]
[385936644,1758137485545,-400.0,0.0002409,2]
[385936645,1758137485554,-400.0,0.0002409,2]
[385936646,1758137485563,-400.0,0.0002409,2]
[385936647,1758137485572,-400.0,0.0002409,2]
[385936648,1758137485582,-400.0,0.0002409,2]
[385936649,1758137485591,-400.0,0.0002409,2]
[385936650,1758137485601,-400.0,0.0002409,2]
[385936651,1758137485610,-400.0,0.0002409,2]
[385936652,1758137485622,-170.28284529,0.0002409,2]
[385936653,1758137485631,-415.91,0.0002409,2]
[385936654,1758137485639,-400.0,0.0002409,2]
[385936655,1758137485648,-400.0,0.0002409,2]
[385936656,1758137485658,-400.0,0.0002409,2]
[385936657,1758137485668,-257.01115607,0.0002409,2]
[385936658,1758137485677,-400.0,0.0002409,2]
[385936659,1758137485686,-400.0,0.0002409,2]
[385936660,1758137485696,-400.0,0.0002409,2]
[385936661,1758137485710,-400.0,0.0002409,2]
[385936662,1758137485720,-400.0,0.0002409,2]
[385936663,1758137485729,-400.0,0.0002409,2]
[385936664,1758137485740,-400.0,0.0002409,2]
[385936665,1758137485749,-400.0,0.0002409,2]
[385936666,1758137485759,-400.0,0.0002409,2]
[385936667,1758137485768,-400.0,0.0002409,2]
[385936668,1758137485777,-400.0,0.0002409,2]
[385936669,1758137485787,-612.38,0.0002409,2]
[385936670,1758137485798,-400.0,0.0002409,2]
[385936671,1758137485806,-431.7,0.0002409,2]
[385936672,1758137485816,-400.0,0.0002409,2]
[385936673,1758137485829,-430.28,0.0002409,2]
[385936674,1758137485838,-400.0,0.0002409,2]
[385936675,1758137485847,-400.0,0.0002409,2]
[385936676,1758137485857,-400.0,0.0002409,2]
[385936677,1758137485867,-400.0,0.0002409,2]
[385936678,1758137485877,-400.0,0.0002409,2]
[385936679,1758137485887,-400.0,0.0002409,2]
[385936680,1758137485896,-400.0,0.0002409,2]
[385936681,1758137485905,-400.0,0.0002409,2]
[385936682,1758137485914,-400.0,0.0002409,2]
[385936683,1758137485923,-400.0,0.0002409,2]
[385936684,1758137485933,-400.0,0.0002409,2]
[385936685,1758137485942,-400.0,0.0002409,2]
[385936686,1758137485955,-400.0,0.0002409,2]
[385936687,1758137485965,-441.41,0.0002409,2]
[385936688,1758137485975,-691.27,0.0002409,2]
[385936689,1758137485985,-708.66,0.0002409,2]
[385936690,1758137485995,-400.0,0.0002409,2]
[385936691,1758137486005,-652.09,0.0002409,2]
[385936692,1758137486015,-568.38,0.0002409,2]
[385936693,1758137486025,-400.0,0.0002409,2]
[385936694,1758137486035,-400.0,0.0002409,2]
[385936695,1758137486045,-421.69,0.0002409,2]
[385936696,1758137486054,-400.0,0.0002409,2]
[385936697,1758137486064,-400.0,0.0002409,2]
[385936698,1758137486074,-400.0,0.0002409,2]
[385936699,1758137486084,-400.0,0.0002409,2]
[385936700,1758137486095,-400.0,0.0002409,2]
[385936701,1758137486106,-1074.46,0.0002409,2]
[385936702,1758137486116,-418.61,0.0002409,2]
[385936703,1758137486126,-400.0,0.0002409,2]
[385936704,1758137486137,-400.0,0.0002409,2]
[385936705,1758137486148,-868.64,0.0002409,2]
[385936706,1758137486158,-400.0,0.0002409,2]
[385936707,1758137486169,-467.34472483,0.0002409,2]
[385936708,1758137486179,-433.88,0.0002409,2]
[385936709,1758137486188,-467.4,0.0002409,2]
[385936710,1758137486198,-400.0,0.0002409,2]
[385936711,1758137486211,-1017.1,0.0002409,2]
[385936712,1758137486221,-613.41,0.0002409,2]
[385936713,1758137486231,-400.0,0.0002409,2]
[385936714,1758137486241,-1761.46,0.0002409,2]
[385936715,1758137486253,-480.39,0.0002409,2]
[385936716,1758137486263,-400.0,0.0002409,2]
[385936717,1758137486274,-400.0,0.0002409,2]
[385936718,1758137486284,-400.0,0.0002409,2]
[385936719,1758137486293,-400.0,0.0002409,2]
[385936720,1758137486302,-1821.95,0.0002409,2]
[385936721,1758137486312,-400.0,0.0002409,2]
[385936722,1758137486323,-750.87074266,0.00024091,2]
[385936723,1758137486333,-400.0,0.00024108,2]
[385936724,1758137486342,-400.0,0.00024108,2]
[385936725,1758137486352,-400.0,0.00024108,2]
[385936726,1758137486361,-400.0,0.00024108,2]
[385936727,1758137486371,-400.0,0.00024108,2]
[385936728,1758137486380,-400.0,0.00024108,2]
[385936729,1758137486390,-400.0,0.00024108,2]
[385936730,1758137486399,-506.83,0.00024108,2]
[385936731,1758137486409,-400.0,0.00024108,2]
[385936732,1758137486419,-400.0,0.00024108,2]
[385936733,1758137486428,-400.0,0.00024108,2]
[385936734,1758137486439,-400.0,0.00024108,2]
[385936735,1758137486449,-259.83214529,0.00024108,2]
[385936736,1758137486459,-400.0,0.00024108,2]
[385936737,1758137486469,-400.0,0.00024108,2]
[385936738,1758137486479,-400.0,0.00024108,2]
[385936739,1758137486488,-400.0,0.00024108,2]
[385936740,1758137486497,-450.56840141,0.00024108,2]
[385936741,1758137486508,-400.0,0.00024108,2]
[385936742,1758137486520,-400.0,0.00024108,2]
[385936743,1758137486530,-400.0,0.00024108,2]
[385936744,1758137486542,-400.0,0.00024108,2]
[385936745,1758137486554,-400.0,0.00024108,2]
[385936746,1758137486564,-400.0,0.00024108,2]
[385936747,1758137486573,-400.0,0.00024108,2]
[385936748,1758137486583,-400.0,0.00024108,2]
[385936749,1758137486593,-400.0,0.00024108,2]
[385936750,1758137486603,-400.0,0.00024108,2]
[385936751,1758137486612,-400.0,0.00024108,2]
[385936752,1758137486622,-400.0,0.00024108,2]
[385936753,1758137486632,-400.0,0.00024108,2]
[385936754,1758137486642,-400.0,0.00024108,2]
[385936755,1758137486651,-400.0,0.00024108,2]
[385936756,1758137486661,-397.49714251,0.00024108,2]
[385936757,1758137486671,-400.0,0.00024108,2]
[385936758,1758137486680,-400.0,0.00024108,2]
[385936759,1758137486689,-400.0,0.00024108,2]
[385936760,1758137486700,-400.0,0.00024108,2]
[385936761,1758137486712,-441.76232248,0.00024108,2]
[385936762,1758137486722,-400.0,0.00024108,2]
[385936763,1758137486731,-400.0,0.00024108,2]
[385936764,1758137486741,-400.0,0.00024108,2]
[385936765,1758137486752,-495.65275371,0.00024108,2]
[385936766,1758137486762,-400.0,0.00024108,2]
[385936767,1758137486772,-400.0,0.00024108,2]
[385936768,1758137486783,-400.0,0.00024108,2]
[385936769,1758137486793,-400.0,0.00024108,2]
[385936770,1758137486803,-400.0,0.00024108,2]
[385936771,1758137486814,-400.0,0.00024108,2]
[385936772,1758137486828,-400.0,0.00024108,2]
[385936773,1758137486838,-400.0,0.00024108,2]
[385936774,1758137486847,-400.0,0.00024108,2]
[385936775,1758137486857,-464.39,0.00024108,2]
[385936776,1758137486869,-400.0,0.00024108,2]
[385936777,1758137486880,-400.0,0.00024108,2]
[385936778,1758137486890,-427.47,0.00024108,2]
[385936779,1758137486901,-400.0,0.00024108,2]
[385936780,1758137486912,-158.71376367,0.00024108,2]
[385936781,1758137486923,-400.0,0.00024108,2]
[385936782,1758137486933,-160.0,0.00024109,3]
[385936783,1758137486942,-213.18994792,0.00024109,3]
[385936784,1758137486952,-400.0,0.00024109,2]
[385936785,1758137486963,-400.0,0.00024109,2]
[385936786,1758137486972,-189.14193646,0.00024109,2]
[385936787,1758137486983,-602.7,0.00024109,2]
[385936788,1758137486992,-400.0,0.00024109,2]
[385936789,1758137487002,-435.38,0.00024109,2]
[385936790,1758137487011,-400.0,0.00024109,2]
[385936791,1758137487021,-400.0,0.00024109,2]
[385936792,1758137487031,-400.0,0.00024109,2]
[385936793,1758137487041,-400.0,0.00024109,2]
[385936794,1758137487050,-400.0,0.00024109,2]
[385936795,1758137487061,-400.0,0.00024109,2]
[385936796,1758137487071,-3002.02,0.00024109,2]
[385936797,1758137487081,-400.0,0.00024109,2]
[385936798,1758137487091,-400.0,0.00024109,2]
[385936799,1758137487100,-320.13647957,0.00024109,2]
[385936800,1758137487111,-400.0,0.00024109,2]
[385936801,1758137487121,-400.0,0.00024109,2]
[385936802,1758137487131,-400.0,0.00024109,2]
[385936803,1758137487141,-243.24,0.00024109,2]
[385936804,1758137487151,-400.0,0.00024109,2]
[385936805,1758137487162,-400.0,0.00024109,2]
[385936806,1758137487171,-400.0,0.00024109,2]
[385936807,1758137487182,-400.0,0.00024109,2]
[385936808,1758137487192,-400.0,0.00024109,2]
[385936809,1758137487202,-450.53,0.00024109,2]
[385936810,1758137487212,-400.0,0.00024109,2]
[385936811,1758137487222,-400.0,0.00024109,2]
[385936812,1758137487232,-400.0,0.00024109,2]
[385936813,1758137487242,-400.0,0.00024109,2]
[385936814,1758137487252,-400.0,0.00024109,2]
[385936815,1758137487263,-400.0,0.00024109,2]
[385936816,1758137487272,-403.85,0.00024109,2]
[385936817,1758137487283,-747.86,0.00024109,2]
[385936818,1758137487292,-531.56,0.00024109,2]
[385936819,1758137487302,-671.74,0.00024109,2]
[385936820,1758137487311,-400.0,0.00024109,2]
[385936821,1758137487322,-400.0,0.00024109,2]
[385936822,1758137487332,-400.0,0.00024109,2]
[385936823,1758137487342,-3263.67,0.00024109,2]
[385936824,1758137487352,-400.0,0.00024109,2]
[385936825,1758137487362,-493.88,0.00024109,2]
[385936826,1758137487372,-568.43,0.00024109,2]
[385936827,1758137487382,-400.0,0.00024109,2]
[385936828,1758137487391,-400.0,0.00024109,2]
[385936829,1758137487401,-454.87,0.00024109,2]
[385936830,1758137487411,-400.0,0.00024109,2]
[385936831,1758137487421,-427.05,0.00024109,2]
[385936832,1758137487431,-400.0,0.00024109,2]
[385936833,1758137487444,-688.11,0.00024109,2]
[385936834,1758137487456,-461.23,0.00024109,2]
[385936835,1758137487466,-400.0,0.00024109,2]
[385936836,1758137487475,-445.65,0.00024109,2]
[385936837,1758137487485,-569.96,0.00024109,2]
[385936838,1758137487495,-441.98,0.00024109,2]
[385936839,1758137487505,-400.0,0.00024109,2]
[385936840,1758137487516,-454.48,0.00024109,2]
[385936841,1758137487528,-463.35,0.00024109,2]
[385936842,1758137487538,-400.0,0.00024109,2]
[385936843,1758137487548,-400.0,0.00024109,2]
[385936844,1758137487558,-492.3,0.00024109,2]
[385936845,1758137487567,-677.36,0.00024109,2]
[385936846,1758137487577,-400.0,0.00024109,2]
[385936847,1758137487586,-400.0,0.00024109,2]
[385936848,1758137487596,-413.4,0.00024109,2]
[385936849,1758137487606,-400.0,0.00024109,2]
[385936850,1758137487616,-796.26,0.00024109,2]
[385936851,1758137487626,-400.0,0.00024109,2]
[385936852,1758137487636,-400.0,0.00024109,2]
[385936853,1758137487646,-2727.12,0.00024109,2]
[385936854,1758137487656,-400.0,0.00024109,2]
[385936855,1758137487666,-518.36,0.00024109,2]
[385936856,1758137487675,-400.0,0.00024109,2]
[385936857,1758137487685,-469.33,0.00024109,2]
[385936858,1758137487696,-400.0,0.00024109,2]
[385936859,1758137487707,-400.0,0.00024109,2]
[385936860,1758137487718,-400.0,0.00024109,2]
[385936861,1758137487728,-400.0,0.00024109,2]
[385936862,1758137487738,-400.0,0.00024109,2]
[385936863,1758137487748,-400.0,0.00024109,2]
[385936864,1758137487759,-400.0,0.00024109,2]
[385936865,1758137487768,-586.66,0.00024109,2]
[385936866,1758137487778,-430.47,0.00024109,2]
[385936867,1758137487788,-400.0,0.00024109,2]
[385936868,1758137487798,-400.0,0.00024109,2]
[385936869,1758137487808,-2000.0,0.00024116,2]
[385936870,1758137487819,-150.0,0.00024167,2]
[385936871,1758137487832,-258.477129,0.00024168,2]
[385936872,1758137487841,-500.0,0.0002417,2]
[385936873,1758137487852,-329.431635,0.0002417,2]
[385936874,1758137487862,-733.07,0.0002417,2]
[385936875,1758137487872,-400.0,0.0002417,2]
[385936876,1758137487882,-400.0,0.0002417,2]
[385936877,1758137487892,-909.25,0.0002417,2]
[385936878,1758137487903,-400.386141,0.00024171,2]
[385936879,1758137487913,-462.13,0.00024172,2]
[385936880,1758137487922,-465.94,0.00024172,2]
[385936881,1758137487932,-400.0,0.00024172,2]
[385936882,1758137487942,-400.0,0.00024172,2]
[385936883,1758137487951,-624.77,0.00024172,2]
[385936884,1758137487965,-1263.69022425,0.00024172,2]
[385936885,1758137487975,-501.09157259,0.00024173,2]
[385936886,1758137487985,-500.0,0.00024173,2]
[385936887,1758137487996,-500.0,0.00024173,2]
[385936888,1758137488006,-500.0,0.00024173,2]
[385936889,1758137488016,-500.0,0.00024173,2]
[385936890,1758137488026,-411.11475388,0.00024173,2]
[385936891,1758137488035,-500.0,0.00024173,2]
[385936892,1758137488045,-503.66456285,0.00024173,2]
[385936893,1758137488055,-500.0,0.00024173,2]
[385936894,1758137488065,-500.0,0.00024173,2]
[385936895,1758137488075,-500.0,0.00024173,2]
[385936896,1758137488085,-500.0,0.00024173,2]
[385936897,1758137488095,-200.0,0.00024173,2]
[385936898,1758137488105,-500.0,0.00024173,2]
[385936899,1758137488115,-500.0,0.00024173,2]
[385936900,1758137488125,-500.0,0.00024173,2]
[385936901,1758137488136,-471.34064699,0.00024173,2]
[385936902,1758137488147,-542.29515299,0.00024175,2]
[385936903,1758137488157,-613.24965899,0.00024176,2]
[385936904,1758137488396,-684.20416499,0.00024178,2]
[385936905,1758137488411,-755.15867099,0.00024179,2]
[385936906,1758137488422,-826.11317699,0.00024181,2]
[385936907,1758137488432,-2000.0,0.00024189,2]
[385936908,1758137488442,-400.0,0.0002419,2]
[385936909,1758137488452,-400.0,0.0002419,2]
[385936910,1758137488464,-400.0,0.0002419,2]
[385936911,1758137488473,-575.48,0.0002419,2]
[385936912,1758137488483,-400.0,0.0002419,2]
[385936913,1758137488492,-400.0,0.0002419,2]
[385936914,1758137488502,-765.76,0.0002419,2]
[385936915,1758137488511,-413.87181105,0.0002419,2]
[385936916,1758137488521,-1623.57,0.0002419,2]
[385936917,1758137488530,-400.0,0.0002419,2]
[385936918,1758137488539,-878.95,0.0002419,2]
[385936919,1758137488550,-400.0,0.0002419,2]
[385936920,1758137488559,-177.139291,0.0002419,2]
[385936921,1758137488569,-244.040939,0.0002419,2]